fUSD/lending_fUSD_20240912
["ID","MTS","AMOUNT","RATE_DAILY","PERIOD"]
[337832573,1726141846056,-332.9,0.000137,2]
[337832575,1726141846067,-427.76,0.000137,2]
[337832577,1726141846077,-150.0,0.000137,2]
[337832579,1726141846087,-752.67,0.000137,2]
[337832581,1726141846098,-422.38,0.000137,2]
[337832583,1726141846109,-150.0,0.000137,2]
[337832585,1726141846119,-422.38,0.000137,2]
[337832587,1726141846130,-752.67,0.000137,2]
[337832589,1726141846140,-150.0,0.000137,2]
[337832591,1726141846150,-427.76,0.000137,2]
[337832593,1726141846161,-153.7,0.0001374,2]
[337832595,1726141846170,-150.0,0.00013799,2]
[337832597,1726141846180,-752.67,0.000138,2]
[337832599,1726141846189,-427.76,0.000138,2]
[337832601,1726141846199,-357.66,0.000138,2]
[337832603,1726141846208,-304.08,0.000138,2]
[337832605,1726141846218,-150.0,0.000138,2]
[337832607,1726141846228,-150.0,0.000138,2]
[337832609,1726141846238,-150.0,0.000138,2]
[337832611,1726141846249,-422.38,0.000138,2]
[337832613,1726141846259,-169.82,0.000138,2]
[337832616,1726141846269,-715.32,0.000138,2]
[337832618,1726141846279,-1504.32,0.000138,2]
[337832620,1726141846290,-844.76,0.000138,2]
[337832622,1726141846300,-300.0,0.000138,2]
[337832624,1726141846310,-427.76,0.000138,2]
[337832626,1726141846320,-150.0,0.000138,2]
[337832628,1726141846330,-300.0,0.000138,2]
[337832630,1726141846340,-300.0,0.000138,2]
[337832632,1726141846350,-150.0,0.000138,2]
[337832634,1726141846359,-357.66,0.000138,2]
[337832636,1726141846369,-422.38,0.000138,2]
[337832638,1726141846379,-150.0,0.000138,2]
[337832640,1726141846388,-752.67,0.000138,2]
[337832642,1726141846398,-752.67,0.00013836,2]
[337832644,1726141846408,-752.67,0.00013836,2]
[337832646,1726141846418,-258.26,0.00013836,2]
[337832647,1726141846427,-793.68,0.00013837,2]
[337832649,1726141846446,-291.41,0.000139,2]
[337832651,1726141846455,-500.0,0.00013904,2]
[337832653,1726141846465,-500.0,0.00013904,2]
[337832655,1726141846474,-150.0,0.00013973,2]
[337832657,1726141846484,-150.0,0.00013973,2]
[337832659,1726141846495,-300.0,0.00013973,2]
[337832661,1726141846506,-863.14,0.00013973,2]
[337832663,1726141846516,-150.0,0.00013973,2]
[337832665,1726141846528,-300.36,0.00013973,2]
[337832667,1726141846546,-752.67,0.00014,2]
[337832669,1726141846555,-752.67,0.00014,2]
[337832671,1726141846565,-150.0,0.00014,2]
[337832673,1726141846575,-150.0,0.00014,2]
[337832675,1726141846584,-179.99297769,0.00014,2]
[337832677,1726141846594,-855.32,0.000141,2]
[337832679,1726141846604,-150.0,0.000141,2]
[337832680,1726141846614,-150.0,0.000141,2]
[337832682,1726141846624,-422.38,0.000141,2]
[337832684,1726141846633,-752.67,0.000141,2]
[337832686,1726141846643,-752.67,0.000141,2]
[337832688,1726141846652,-422.38,0.000141,2]
[337832690,1726141846661,-150.0,0.000141,2]
[337832692,1726141846671,-150.0,0.000141,2]
[337832694,1726141846680,-752.67,0.000141,2]
[337832696,1726141846690,-422.38,0.000141,2]
[337832698,1726141846699,-359.99,0.000141,2]
[337832700,1726141846709,-302.07,0.000141,2]
[337832702,1726141846718,-332.1,0.000141,2]
[337832704,1726141846727,-297.7000739,0.000141,2]
[337833443,1726141867563,500.0,8.219e-05,2]
[337833444,1726141867953,500.0,8.219e-05,2]
[337833445,1726141868447,500.0,8.219e-05,2]
[337833446,1726141868820,500.0,8.219e-05,2]
[337833447,1726141869636,500.0,8.219e-05,2]
[337833448,1726141869949,500.0,8.219e-05,2]
[337833449,1726141870171,500.0,8.219e-05,2]
[337833450,1726141871158,500.0,8.219e-05,2]
[337833451,1726141871556,500.0,8.219e-05,2]
[337833452,1726141872014,500.0,8.219e-05,2]
[337833453,1726141872464,500.0,8.219e-05,2]
[337833454,1726141872926,500.0,8.219e-05,2]
[337833455,1726141873404,500.0,8.219e-05,2]
[337833456,1726141874111,500.0,8.219e-05,2]
[337833457,1726141874357,500.0,8.219e-05,2]
[337833458,1726141874949,500.0,8.219e-05,2]
[337833459,1726141875415,500.0,8.219e-05,2]
[337833460,1726141875865,500.0,8.219e-05,2]
[337833461,1726141876309,500.0,8.219e-05,2]
[337833462,1726141876735,500.0,8.219e-05,2]
[337833463,1726141877357,500.0,8.219e-05,2]
[337833464,1726141878260,500.0,8.219e-05,2]
[337833465,1726141878702,500.0,8.219e-05,2]
[337833466,1726141879161,500.0,8.219e-05,2]
[337833467,1726141880704,500.0,8.219e-05,2]
[337833468,1726141880801,500.0,8.219e-05,2]
[337833469,1726141881459,500.0,8.219e-05,2]
[337833470,1726141882409,500.0,8.219e-05,2]
[337833471,1726141882873,500.0,8.219e-05,2]
[337833472,1726141883339,500.0,8.219e-05,2]
[337833473,1726141883801,500.0,8.219e-05,2]
[337833474,1726141884404,500.0,8.219e-05,2]
[337833475,1726141884944,500.0,8.219e-05,2]
[337833476,1726141885241,500.0,8.219e-05,2]
[337833477,1726141886172,500.0,8.219e-05,2]
[337833478,1726141886668,500.0,8.219e-05,2]
[337833479,1726141887148,500.0,8.219e-05,2]
[337833480,1726141887604,179.78270543,8.219e-05,2]
[337833481,1726141971341,743.86,0.00011838,2]
[337833483,1726142110035,181.03,0.00010959,2]
[337833508,1726142560574,738.03,0.00011551,2]
[337833521,1726142909434,-150.22,0.0001315,2]
[337833522,1726142909459,-151.09907109,0.0001319,2]
[337833523,1726142909485,-151.09907107,0.00013237,2]
[337833524,1726142909511,-150.0,0.0001329,2]
[337833525,1726142909536,-163.86763665,0.0001329,2]
[337833526,1726142909563,-159.69,0.00013383,2]
[337833527,1726142909590,-159.69,0.00013389,2]
[337833528,1726142909616,-159.69,0.00013394,2]
[337833529,1726142909643,-159.69,0.000134,2]
[337833530,1726142909670,-159.69,0.00013405,2]
[337833531,1726142909695,-159.69,0.00013411,2]
[337833532,1726142909721,-159.69,0.00013417,2]
[337833533,1726142909746,-159.69,0.00013422,2]
[337833534,1726142909772,-159.69,0.00013428,2]
[337833535,1726142909797,-159.69,0.00013433,2]
[337833536,1726142909823,-159.69,0.00013439,2]
[337833537,1726142909848,-159.69,0.00013444,2]
[337833538,1726142909875,-159.69,0.0001345,2]
[337833539,1726142909901,-150.0,0.00013469,2]
[337833540,1726142909929,-153.7,0.00013496,2]
[337833541,1726142910218,-201.94,0.00013528,2]
[337833542,1726142910275,-194.76,0.00013543,2]
[337833543,1726142910302,-121.74218136,0.00013614,2]
[337833544,1726142910344,-878.25781864,0.00013614,2]
[337833545,1726142910370,-250.0,0.0001362,2]
[337833546,1726142910396,-250.0,0.00013649,2]
[337833547,1726142910423,-250.0,0.00013658,2]
[337833548,1726142910450,-196.67,0.00013749,2]
[337833549,1726142910475,-300.0,0.00013793,2]
[337833550,1726142910500,-500.0,0.00013794,2]
[337833551,1726142910524,-500.0,0.00013794,2]
[337833552,1726142910548,-114.60368731,0.00013794,2]
[337833553,1726142933928,-250.0,0.00013124,2]
[337833554,1726142933955,-151.09907107,0.00013283,2]
[337833555,1726142933980,-385.39631269,0.00013794,2]
[337833556,1726142934006,-500.0,0.00013794,2]
[337833557,1726142934034,-500.0,0.00013794,2]
[337833558,1726142934058,-553.2,0.00013794,2]
[337833559,1726142934083,-500.0,0.00013794,2]
[337833560,1726142934109,-522.37,0.00013794,2]
[337833561,1726142934136,-440.41116573,0.000138,2]
[337833562,1726142934181,-312.25883427,0.000138,2]
[337833563,1726142934207,-844.56,0.000138,2]
[337833564,1726142934482,-738.03,0.00013815,2]
[337833565,1726142934510,-454.97,0.00013841,2]
[337833566,1726142934538,-605.7284222,0.00013874,2]
[337833567,1726142958938,-2910.91323503,0.00013874,2]
[337833569,1726143000370,25000.0,0.00012,2]
[337833570,1726143000393,14000.0,0.00012,2]
[337833572,1726143031631,-250.0,0.00013623,2]
[337833573,1726143031640,-179.8742519,0.00013847,2]
[337833574,1726143031653,-241.66259211,0.00013847,2]
[337833575,1726143031663,-2438.72576911,0.00013874,2]
[337833576,1726143031687,-621.77146932,0.00013874,2]
[337833577,1726143031700,-1120.3923776,0.00013874,2]
[337833578,1726143031711,-450.25,0.00013874,2]
[337833579,1726143031746,-378.25609224,0.00013874,2]
[337833580,1726143031758,-246.18864719,0.00013874,2]
[337833581,1726143031767,-24.36038889,0.000141,2]
[337833582,1726143031798,-397.64634523,0.000141,2]
[337833583,1726143031809,-1300.99,0.000141,2]
[337833584,1726143031856,-522.65997588,0.000141,2]
[337833585,1726143031865,-9330.19411412,0.0001414,2]
[337833596,1726143037625,-410.82807031,0.0001414,2]
[337833597,1726143037637,-11101.41915137,0.0001414,2]
[337833598,1726143037648,-24597.19794807,0.0001414,2]
[337833599,1726143037659,-1599.21665465,0.0001414,2]
[337833600,1726143037738,-376.34829335,0.0001414,2]
[337833601,1726143037749,-838.95990823,0.0001414,2]
[337833602,1726143037786,-445.42957939,0.0001414,2]
[337833603,1726143037797,-7225.22519846,0.0001414,2]
[337833604,1726143037807,-1285.23570454,0.0001414,2]
[337833605,1726143037818,-535.75730886,0.0001414,2]
[337833606,1726143037840,-962.23710813,0.0001414,2]
[337833607,1726143037851,-1390.08954556,0.0001414,2]
[337833608,1726143037862,-67417.23911656,0.0001414,2]
[337833609,1726143037872,-212.0,0.0001415,2]
[337833610,1726143037882,-300.0,0.00014238,2]
[337833611,1726143037891,-5290.73658557,0.00014239,2]
[337833612,1726143037901,-173.927247,0.00014279,2]
[337833613,1726143037911,-212.0,0.0001429,2]
[337833614,1726143037921,-212.0,0.0001443,2]
[337833615,1726143037930,-150.0,0.00014471,2]
[337833616,1726143037941,-5859.0,0.00014471,2]
[337833617,1726143037950,-9307.0,0.00014471,2]
[337833619,1726143037959,-1144.0,0.00014471,2]
[337833621,1726143037968,-1079.0,0.00014471,2]
[337833623,1726143037978,-166.6528,0.00014472,2]
[337833625,1726143037987,-16333.41,0.00014504,2]
[337833626,1726143037996,-220.63,0.00014504,2]
[337833628,1726143038005,-1117.24,0.00014504,2]
[337833630,1726143038015,-1500.0,0.0001455,2]
[337833633,1726143038027,-4581.47980496,0.0001455,12]
[337833635,1726143038038,-1180.52477935,0.0001455,12]
[337833637,1726143038049,-666.77284336,0.0001455,12]
[337833639,1726143038060,-6554.30971465,0.0001455,12]
[337833641,1726143038071,-1751.89351682,0.0001455,12]
[337833643,1726143038082,-295.65162427,0.0001455,12]
[337833645,1726143038095,-451.03378972,0.0001455,12]
[337833646,1726143038124,-1272.54488719,0.0001455,12]
[337833647,1726143038135,-3400.1435629,0.0001455,12]
[337833648,1726143038146,-1000.0,0.0001455,12]
[337833650,1726143039698,-55078.14520044,0.0001455,12]
[337833651,1726143039707,-500.0,0.00014553,2]
[337833652,1726143039717,-151.0,0.00014572,2]
[337833653,1726143039725,-163.0,0.00014572,2]
[337833654,1726143039735,-200.0,0.00014572,2]
[337833655,1726143039745,-151.374,0.00014572,2]
[337833656,1726143039754,-164.837,0.00014572,2]
[337833657,1726143039763,-209.076,0.00014572,2]
[337833658,1726143039772,-150.922,0.00014572,2]
[337833659,1726143039781,-156.118,0.00014572,2]
[337833660,1726143039790,-150.0,0.00014572,2]
[337833661,1726143039799,-229.876,0.00014572,2]
[337833662,1726143039808,-150.498,0.00014572,2]
[337833663,1726143039818,-624.0,0.00014572,2]
[337833664,1726143039827,-543.577,0.00014572,2]
[337833665,1726143039836,-431.461,0.00014572,2]
[337833666,1726143039845,-1547.0,0.00014572,2]
[337833667,1726143039854,-931.0,0.00014572,2]
[337833668,1726143039863,-810.0,0.00014572,2]
[337833669,1726143039873,-557.0,0.00014572,2]
[337833670,1726143039882,-150.0,0.00014572,2]
[337833671,1726143039892,-551.525,0.00014572,2]
[337833672,1726143039902,-1901.0,0.00014572,2]
[337833673,1726143039911,-1118.0,0.00014572,2]
[337833674,1726143039920,-804.0,0.00014572,2]
[337833675,1726143039930,-248.0,0.00014572,2]
[337833676,1726143039939,-1920.0,0.00014572,2]
[337833677,1726143039948,-3342.0,0.00014572,2]
[337833678,1726143039958,-212.0,0.0001458,2]
[337833679,1726143039967,-387.623,0.00014586,2]
[337833681,1726143039976,-417.51738388,0.000146,2]
[337833683,1726143039985,-417.51738379,0.0001461,2]
[337833684,1726143039994,-166.544,0.00014611,2]
[337833685,1726143040004,-150.0,0.00014614,2]
[337833686,1726143040015,-417.51738379,0.00014621,2]
[337833687,1726143040026,-417.51738379,0.00014631,2]
[337833688,1726143040035,-173.927247,0.00014636,2]
[337833689,1726143040044,-417.51738379,0.00014642,2]
[337833690,1726143040053,-417.51738379,0.00014652,2]
[337833691,1726143040064,-417.51738379,0.00014663,2]
[337833692,1726143040073,-417.51738379,0.00014673,2]
[337833693,1726143040083,-1140.7313,0.00014684,2]
[337833694,1726143040093,-260.7841,0.00014684,2]
[337833695,1726143040103,-593.7279,0.00014694,2]
[337833696,1726143040113,-745.91529688,0.00014694,2]
[337833697,1726143040122,-402.68371648,0.00014694,2]
[337833698,1726143040131,-174.49724789,0.00014694,2]
[337833699,1726143040141,-1126.33082204,0.00014694,2]
[337833700,1726143040150,-204.63828779,0.00014694,2]
[337833701,1726143040160,-18856.32236191,0.00014694,2]
[337833702,1726143040169,-1060.79317345,0.00014694,2]
[337833703,1726143040178,-4942.38379433,0.000147,2]
[337833704,1726143040187,-150.0,0.000147,2]
[337833705,1726143040197,-212.0,0.0001472,2]
[337833706,1726143040206,-150.0,0.00014767,2]
[337833707,1726143040216,-1785.40713602,0.00014783,5]
[337833708,1726143040225,-151.33,0.00014784,2]
[337833709,1726143040235,-159251.47076205,0.00014784,2]
[337833710,1726143040247,-28803.56104091,0.00014784,2]
[337833711,1726143040258,-2139.91703947,0.00014784,2]
[337833712,1726143040270,-3537.73874138,0.00014784,2]
[337833713,1726143040281,-1087.46169813,0.00014784,2]
[337833714,1726143040292,-7163.33130444,0.00014784,2]
[337833715,1726143040315,-1333.31807868,0.00014784,2]
[337833716,1726143040326,-1275.2531778,0.00014784,2]
[337833717,1726143040338,-1748.56626615,0.00014784,2]
[337833718,1726143040349,-1467.8621135,0.00014784,2]
[337833719,1726143040360,-78079.80296049,0.00014784,2]
[337833720,1726143040390,-1131.59228596,0.00014784,2]
[337833721,1726143040401,-730.55933782,0.00014784,2]
[337833722,1726143040412,-1550.51554822,0.00014784,2]
[337833723,1726143040421,-623.30837792,0.00014793,2]
[337833724,1726143040431,-575.0,0.00014794,2]
[337833725,1726143040440,-40.03678829,0.00014794,2]
[337833726,1726143040451,-2025.26791969,0.00014794,2]
[337833727,1726143040461,-1206.83348292,0.00014794,2]
[337833728,1726143040481,-562.53248212,0.00014794,2]
[337833729,1726143040492,-285.91474318,0.00014794,2]
[337833730,1726143040503,-495.55389865,0.00014794,2]
[337833731,1726143040514,-500.0,0.00014794,2]
[337833732,1726143040525,-6396.77599098,0.00014794,2]
[337833733,1726143040536,-615.61579363,0.00014794,2]
[337833734,1726143040600,-375.43823511,0.00014794,2]
[337833735,1726143040611,-674.47609604,0.00014794,2]
[337833736,1726143040623,-722.9693,0.00014794,2]
[337833737,1726143040680,-1259.96086,0.00014794,2]
[337833738,1726143040691,-1408.85818084,0.00014794,2]
[337833739,1726143040702,-1368.05667035,0.00014794,2]
[337833740,1726143040713,-650.0,0.00014794,2]
[337833758,1726143044257,-7365.16641705,0.00014794,2]
[337833759,1726143044269,-6723.34743954,0.00014794,2]
[337833760,1726143044293,-1727.45592964,0.00014794,2]
[337833761,1726143044308,-151365.82523002,0.00014794,2]
[337833762,1726143044318,-932.728798,0.00014794,2]
[337833763,1726143044328,-151.0,0.00014794,2]
[337833764,1726143044337,-151.0,0.00014794,2]
[337833765,1726143044346,-151.0,0.00014794,2]
[337833766,1726143044356,-153.736647,0.00014794,2]
[337833767,1726143044366,-500.0,0.00014794,2]
[337833768,1726143044376,-182.78038307,0.00014794,2]
[337833769,1726143044386,-500.0,0.00014794,2]
[337833770,1726143044396,-500.0,0.00014794,2]
[337833771,1726143044405,-500.0,0.00014794,2]
[337833772,1726143044415,-500.0,0.00014794,2]
[337833773,1726143044425,-500.0,0.00014794,2]
[337833774,1726143044435,-500.0,0.00014794,2]
[337833775,1726143044445,-500.0,0.00014794,2]
[337833776,1726143044455,-500.0,0.00014794,2]
[337833777,1726143044465,-500.0,0.00014794,2]
[337833778,1726143044475,-500.0,0.00014794,2]
[337833779,1726143044485,-500.0,0.00014794,2]
[337833780,1726143044494,-500.0,0.00014794,2]
[337833781,1726143044504,-500.0,0.00014794,2]
[337833782,1726143044514,-209.28536187,0.00014794,2]
[337833783,1726143044523,-1384.13,0.00014794,2]
[337833784,1726143044533,-1384.13,0.00014794,2]
[337833785,1726143044543,-1384.13,0.00014794,2]
[337833786,1726143044552,-1384.13,0.00014794,2]
[337833787,1726143044562,-1384.13,0.00014794,2]
[337833788,1726143044572,-1384.13,0.00014794,2]
[337833789,1726143044582,-1384.13,0.00014794,2]
[337833790,1726143044592,-1384.13,0.00014794,2]
[337833791,1726143044601,-1384.13,0.00014794,2]
[337833792,1726143044611,-1384.13,0.00014794,2]
[337833793,1726143044621,-1384.13,0.00014794,2]
[337833794,1726143044630,-1384.13,0.00014794,2]
[337833795,1726143044639,-1384.13,0.00014794,2]
[337833796,1726143044648,-1384.13,0.00014794,2]
[337833797,1726143044657,-1384.13,0.00014794,2]
[337833798,1726143044667,-1384.13,0.00014794,2]
[337833799,1726143044676,-1384.13,0.00014794,2]
[337833800,1726143044686,-1384.13,0.00014794,2]
[337833801,1726143044695,-1384.13,0.00014794,2]
[337833802,1726143044705,-1384.13,0.00014794,2]
[337833803,1726143044714,-151.0,0.00014794,2]
[337833804,1726143044724,-1384.13,0.00014794,2]
[337833805,1726143045062,-1384.13,0.00014794,2]
[337833806,1726143045106,-151.0,0.00014794,2]
[337833807,1726143045116,-1384.13,0.00014794,2]
[337833808,1726143045125,-1384.24668043,0.00014794,2]
[337833809,1726143045135,-151.0,0.00014794,2]
[337833810,1726143045144,-151.0,0.00014794,2]
[337833811,1726143045154,-151.0,0.00014794,2]
[337833812,1726143045165,-151.0,0.00014794,2]
[337833813,1726143045174,-151.0,0.00014794,2]
[337833814,1726143045183,-151.0,0.00014794,2]
[337833815,1726143045194,-151.0,0.00014794,2]
[337833816,1726143045203,-1101.4,0.00014794,2]
[337833817,1726143045213,-1101.4,0.00014794,2]
[337833818,1726143045223,-1101.4,0.00014794,2]
[337833819,1726143045232,-1101.4,0.00014794,2]
[337833820,1726143045241,-1101.4,0.00014794,2]
[337833821,1726143045252,-1101.4,0.00014794,2]
[337833822,1726143045261,-1101.4,0.00014794,2]
[337833823,1726143045271,-1101.4,0.00014794,2]
[337833824,1726143045281,-1101.4,0.00014794,2]
[337833825,1726143045291,-1101.4,0.00014794,2]
[337833826,1726143045300,-4011.05,0.00014794,2]
[337833827,1726143045310,-1101.4,0.00014794,2]
[337833828,1726143045320,-804.37225207,0.00014794,2]
[337833829,1726143045425,-3206.67774793,0.00014794,2]
[337833830,1726143045435,-1101.4,0.00014794,2]
[337833831,1726143045445,-4011.05,0.00014794,2]
[337833832,1726143045455,-1101.4,0.00014794,2]
[337833833,1726143045464,-4011.05,0.00014794,2]
[337833834,1726143045474,-1101.4,0.00014794,2]
[337833835,1726143045484,-4011.05,0.00014794,2]
[337833836,1726143045494,-1101.4,0.00014794,2]
[337833837,1726143045503,-4011.05,0.00014794,2]
[337833838,1726143045513,-1101.4,0.00014794,2]
[337833839,1726143045523,-4011.05,0.00014794,2]
[337833840,1726143045533,-1101.4,0.00014794,2]
[337833841,1726143045542,-4011.05,0.00014794,2]
[337833842,1726143045551,-1101.4,0.00014794,2]
[337833843,1726143045563,-4011.05,0.00014794,2]
[337833844,1726143045572,-1101.4,0.00014794,2]
[337833845,1726143045582,-1101.4,0.00014794,2]
[337833846,1726143045591,-4011.05,0.00014794,2]
[337833847,1726143045600,-1101.4,0.00014794,2]
[337833848,1726143045610,-4011.05,0.00014794,2]
[337833849,1726143045619,-1101.4,0.00014794,2]
[337833850,1726143045628,-4011.05,0.00014794,2]
[337833851,1726143045637,-729.47755106,0.00014794,2]
[337833852,1726143045680,-3281.57244894,0.00014794,2]
[337833853,1726143045689,-2586.33759938,0.00014794,2]
[337833854,1726143045710,-507.25852381,0.00014794,2]
[337833856,1726143045721,-917.45387681,0.00014794,2]
[337833857,1726143045731,-618.39935571,0.00014794,2]
[337833858,1726143045780,-483.00064429,0.00014794,2]
[337833859,1726143045789,-1842.34858512,0.00014794,2]
[337833860,1726143045802,-714.36,0.00014794,2]
[337833863,1726143046537,-355.99679615,0.00014684,2]
[337833864,1726143046553,-61.52058764,0.00014684,2]
[337833865,1726143046563,-246.57941236,0.00014781,2]
[337833866,1726143069978,692.46,0.00012021,2]
[337833871,1726143206164,500.0,0.00011164,2]
[337833872,1726143206457,500.0,0.00011164,2]
[337833875,1726143386453,335.9,0.00010959,2]
[337833878,1726143695914,685.43,0.0001119,2]
[337833881,1726143889173,171.97,0.00010959,2]
[337833882,1726143924029,8114.24,0.00012654,2]
[337833883,1726143924054,14860.32,0.00012654,2]
[337833884,1726143929044,10139.68,0.000101,2]
[337833885,1726143929066,16927.90756105,0.000101,2]
[337833890,1726144030770,1106.4,0.00012706,2]
[337833902,1726144045516,250.0,0.0001274,2]
[337833905,1726144085301,250.0,0.00012731,2]
[337833906,1726144094340,202.17,0.0001265,2]
[337833908,1726144099652,200.0,0.0001265,2]
[337833909,1726144106114,22119.99189974,0.00012,30]
[337833911,1726144112282,437.13,0.00012661,2]
[337833912,1726144135469,250.0,0.00012679,2]
[337833913,1726144158525,183.00821368,0.00012961,2]
[337833917,1726144226856,676.0,0.00010869,2]
[337833921,1726144231767,-494.93,0.00013042,2]
[337833922,1726144231775,-577.99778133,0.00013061,2]
[337833923,1726144231786,-41.94221867,0.00013061,2]
[337833924,1726144231795,-150.24,0.00013064,2]
[337833925,1726144231803,-300.0,0.00013107,2]
[337833927,1726144231813,-564.56,0.00013108,2]
[337833928,1726144231822,-150.0,0.00013108,2]
[337833929,1726144231832,-2945.05525343,0.00013108,2]
[337833930,1726144231844,-6940.19645781,0.00013108,2]
[337833931,1726144231854,-181.26,0.00013119,2]
[337833932,1726144231864,-676.0,0.00013133,2]
[337833933,1726144231872,-157.34,0.00013144,2]
[337833934,1726144231881,-619.39,0.00013156,2]
[337833935,1726144231890,-1240.4,0.00013156,2]
[337833936,1726144231902,-299.99,0.00013156,2]
[337833937,1726144231911,-460.06,0.00013164,2]
[337833938,1726144231921,-150.0,0.00013164,2]
[337833939,1726144231929,-167.57,0.00013165,2]
[337833940,1726144231939,-3202.56567269,0.00013165,2]
[337833941,1726144231949,-457.01764906,0.00013165,2]
[337833942,1726144231960,-484.30030763,0.00013165,2]
[337833943,1726144232053,-17456.59072017,0.00013165,2]
[337833945,1726144232078,-348.26422483,0.00013165,2]
[337833947,1726144232151,-4970.62142562,0.00013165,2]
[337833948,1726144232162,-4224.82814949,0.00013166,2]
[337833949,1726144232382,-25775.16185051,0.00013166,2]
[337833950,1726144232391,-167.57,0.00013178,2]
[337833951,1726144232401,-13360.61,0.00013178,2]
[337833952,1726144232410,-3463.97,0.00013178,2]
[337833953,1726144232420,-167.57,0.00013191,2]
[337833954,1726144232429,-949.85,0.00013193,2]
[337833955,1726144232438,-167.57,0.00013204,2]
[337833956,1726144232448,-167.57,0.00013217,2]
[337833957,1726144232457,-150.0,0.0001329,2]
[337833958,1726144232467,-150.0,0.0001329,2]
[337833959,1726144232480,-1000.0,0.00013473,2]
[337833960,1726144232489,-200.0,0.00013611,2]
[337833961,1726144232499,-5084.7608,0.00013777,2]
[337833962,1726144232508,-214.072,0.00013846,2]
[337833963,1726144232517,-181.18,0.00013893,2]
[337833964,1726144232526,-500.0,0.00013904,2]
[337833965,1726144232535,-500.0,0.00013904,2]
[337833966,1726144232545,-23830.31703739,0.00013936,2]
[337833967,1726144232554,-150.0,0.000141,2]
[337833968,1726144232564,-150.0,0.000141,2]
[337833969,1726144232573,-150.0,0.000141,2]
[337833970,1726144232583,-6243.2312,0.0001425,2]
[337833971,1726144232592,-197.0,0.00014269,2]
[337833972,1726144232602,-174.38044238,0.00014304,2]
[337833973,1726144232612,-174.38044238,0.00014347,2]
[337833974,1726144232622,-23442.868,0.0001435,2]
[337833975,1726144232632,-420.0,0.00014372,2]
[337833976,1726144232641,-174.38044238,0.00014391,2]
[337833977,1726144232651,-11079.8713,0.00014404,2]
[337833978,1726144232660,-174.38044238,0.00014434,2]
[337833979,1726144232669,-7257.3533,0.0001445,2]
[337833980,1726144232678,-355.6906,0.0001445,2]
[337833981,1726144232688,-21006.5169,0.0001445,2]
[337833982,1726144232697,-174.38044238,0.00014477,2]
[337833983,1726144232707,-1079.23055865,0.00014485,2]
[337833984,1726144232716,-1066.80243076,0.00014485,2]
[337833985,1726144232729,-174.38044238,0.00014521,2]
[337833986,1726144232739,-174.38044238,0.00014564,2]
[337833987,1726144232749,-285.96271826,0.00014567,2]
[337833988,1726144232758,-300.0,0.00014571,2]
[337833989,1726144232767,-1500.0,0.00014589,2]
[337833990,1726144232777,-1000.0,0.00014594,2]
[337833991,1726144232787,-300.59,0.000146,2]
[337833992,1726144232796,-389.104,0.000146,2]
[337833993,1726144232806,-174.38044238,0.00014607,2]
[337833994,1726144232815,-152.63909011,0.00014615,2]
[337833995,1726144232824,-150.0,0.00014616,2]
[337833996,1726144232834,-161.581,0.00014621,2]
[337833997,1726144232843,-1500.0,0.00014642,2]
[337833998,1726144232853,-2038.04726,0.0001465,2]
[337833999,1726144232862,-174.38044238,0.00014651,2]